[Event "January 9 Early 2024"]
[Site "https://www.chess.com"]
[Date "2024.01.11"]
[Round "4"]
[White "Kuzubov, Yuriy"]
[Black "Przybylski, Wojciech"]
[Result "1-0"]
[Board "273"]
[TimeControl "180+1"]
[WhiteFideId "14112906"]
[BlackFideId "1117599"]
[WhiteElo "2856"]
[BlackElo "2554"]
[WhiteTeam "UKR"]
[BlackTeam "POL"]
[WhiteClock "0:00:01"]
[BlackClock "0:00:01"]

1. d4 {[%clk 0:03:00]}  Nf6 {[%clk 0:02:59]} 2. Nf3 {[%clk 0:03:00]}  e6 {[%clk 0:02:59]} 3. c4 {[%clk 0:03:00]}  d5 {[%clk 0:02:56]} 4. Nc3 {[%clk 0:03:00]}  c6 {[%clk 0:02:56]} 5. e3 {[%clk 0:02:58]}  Nbd7 {[%clk 0:02:55]} 6. Be2 {[%clk 0:02:57]}  dxc4 {[%clk 0:02:53]} 7. a4 {[%clk 0:02:57]}  Bd6 {[%clk 0:02:52]} 8. Nd2 {[%clk 0:02:57]}  O-O {[%clk 0:02:51]} 9. Nxc4 {[%clk 0:02:56]}  Bc7 {[%clk 0:02:51]} 10. O-O {[%clk 0:02:55]}  e5 {[%clk 0:02:49]} 11. a5 {[%clk 0:02:43]}  exd4 {[%clk 0:02:48]} 12. exd4 {[%clk 0:02:38]}  Re8 {[%clk 0:02:44]} 13. Bg5 {[%clk 0:02:37]}  h6 {[%clk 0:02:43]} 14. Bh4 {[%clk 0:02:35]}  Nf8 {[%clk 0:02:42]} 15. d5 {[%clk 0:02:02]}  cxd5 {[%clk 0:02:23]} 16. Bxf6 {[%clk 0:02:00]}  Qxf6 {[%clk 0:02:20]} 17. Nxd5 {[%clk 0:01:59]}  Qd8 {[%clk 0:02:09]} 18. Bf3 {[%clk 0:01:34]}  Be6 {[%clk 0:02:00]} 19. a6 {[%clk 0:01:15]}  bxa6 {[%clk 0:01:49]} 20. Nxc7 {[%clk 0:01:11]}  Qxc7 {[%clk 0:01:47]} 21. Nd6 {[%clk 0:01:05]}  Red8 {[%clk 0:01:34]} 22. Bxa8 {[%clk 0:01:04]}  Rxa8 {[%clk 0:01:28]} 23. Ne4 {[%clk 0:00:50]}  Ng6 {[%clk 0:01:22]} 24. Qc1 {[%clk 0:00:46]}  Qb6 {[%clk 0:01:08]} 25. Ra3 {[%clk 0:00:44]}  Ne5 {[%clk 0:00:59]} 26. Rg3 {[%clk 0:00:40]}  Bd5 {[%clk 0:00:50]} 27. Nc3 {[%clk 0:00:36]}  Bc4 {[%clk 0:00:46]} 28. Rd1 {[%clk 0:00:33]}  Rb8 {[%clk 0:00:42]} 29. h3 {[%clk 0:00:31]}  Ng6 {[%clk 0:00:32]} 30. Nd5 {[%clk 0:00:25]}  Bxd5 {[%clk 0:00:29]} 31. Rxd5 {[%clk 0:00:26]}  Qxb2 {[%clk 0:00:28]} 32. Qxb2 {[%clk 0:00:21]}  Rxb2 {[%clk 0:00:28]} 33. Rd8+ {[%clk 0:00:20]}  Kh7 {[%clk 0:00:27]} 34. Rf3 {[%clk 0:00:21]}  Ne5 {[%clk 0:00:27]} 35. Re3 {[%clk 0:00:19]}  f6 {[%clk 0:00:26]} 36. Ra8 {[%clk 0:00:18]}  Rb1+ {[%clk 0:00:23]} 37. Kh2 {[%clk 0:00:18]}  Rb2 {[%clk 0:00:23]} 38. f4 {[%clk 0:00:16]}  Ng6 {[%clk 0:00:23]} 39. Kg3 {[%clk 0:00:15]}  Rb4 {[%clk 0:00:22]} 40. Rf3 {[%clk 0:00:12]}  Rb7 {[%clk 0:00:20]} 41. Ra3 {[%clk 0:00:10]}  Rb4 {[%clk 0:00:16]} 42. Rf3 {[%clk 0:00:10]}  Rb7 {[%clk 0:00:16]} 43. f5 {[%clk 0:00:09]}  Ne7 {[%clk 0:00:15]} 44. Kh2 {[%clk 0:00:08]}  Rb5 {[%clk 0:00:11]} 45. g4 {[%clk 0:00:08]}  Rb7 {[%clk 0:00:09]} 46. Ra3 {[%clk 0:00:07]}  Rb2+ {[%clk 0:00:05]} 47. Kg3 {[%clk 0:00:07]}  Nc6 {[%clk 0:00:05]} 48. Rxa6 {[%clk 0:00:05]}  Rb3+ {[%clk 0:00:05]} 49. Kg2 {[%clk 0:00:05]}  Rb2+ {[%clk 0:00:06]} 50. Kf1 {[%clk 0:00:05]}  Rb1+ {[%clk 0:00:06]} 51. Kf2 {[%clk 0:00:05]}  Rb2+ {[%clk 0:00:06]} 52. Ke3 {[%clk 0:00:04]}  Rb3+ {[%clk 0:00:06]} 53. Kd2 {[%clk 0:00:04]}  Ne5 {[%clk 0:00:04]} 54. R8xa7 {[%clk 0:00:04]}  Rxh3 {[%clk 0:00:02]} 55. Rxf6 {[%clk 0:00:04]}  Rg3 {[%clk 0:00:02]} 56. Re6 {[%clk 0:00:03]}  Nf3+ {[%clk 0:00:02]} 57. Kd1 {[%clk 0:00:01]}  Rxg4 {[%clk 0:00:01]} 58. f6 {[%clk 0:00:01]} 1-0

[Event "January 9 Early 2024"]
[Site "https://www.chess.com"]
[Date "2024.01.11"]
[Round "4"]
[White "Kruckenhauser, Arthur"]
[Black "Weetik, Vjacheslav"]
[Result "1/2-1/2"]
[Board "274"]
[TimeControl "180+1"]
[WhiteFideId "1642812"]
[BlackFideId "4153472"]
[WhiteElo "2562"]
[BlackElo "2759"]
[WhiteTeam "AUT"]
[BlackTeam "RUS"]
[WhiteClock "0:00:05"]
[BlackClock "0:00:02"]

1. d4 {[%clk 0:03:00]}  Nf6 {[%clk 0:02:57]} 2. Nf3 {[%clk 0:03:00]}  e6 {[%clk 0:02:57]} 3. c3 {[%clk 0:03:01]}  d5 {[%clk 0:02:50]} 4. Bg5 {[%clk 0:03:01]}  c5 {[%clk 0:02:49]} 5. e3 {[%clk 0:03:00]}  Be7 {[%clk 0:02:44]} 6. Nbd2 {[%clk 0:03:00]}  O-O {[%clk 0:02:41]} 7. Bd3 {[%clk 0:03:00]}  b6 {[%clk 0:02:38]} 8. O-O {[%clk 0:03:00]}  Ba6 {[%clk 0:02:27]} 9. Bxa6 {[%clk 0:02:50]}  Nxa6 {[%clk 0:02:28]} 10. Ne5 {[%clk 0:02:51]}  Qc8 {[%clk 0:02:26]} 11. f4 {[%clk 0:02:50]}  Re8 {[%clk 0:02:25]} 12. Rf3 {[%clk 0:02:47]}  Ne4 {[%clk 0:02:14]} 13. Nxe4 {[%clk 0:02:05]}  dxe4 {[%clk 0:02:14]} 14. Rg3 {[%clk 0:02:06]}  f6 {[%clk 0:01:40]} 15. Bh6 {[%clk 0:01:48]}  Bf8 {[%clk 0:01:39]} 16. Qh5 {[%clk 0:01:25]}  Qb7 {[%clk 0:01:23]} 17. Bxg7 {[%clk 0:00:59]}  Bxg7 {[%clk 0:01:19]} 18. Rh3 {[%clk 0:00:59]}  fxe5 {[%clk 0:00:38]} 19. Qxh7+ {[%clk 0:00:59]}  Kf8 {[%clk 0:00:38]} 20. fxe5 {[%clk 0:00:59]}  Re7 {[%clk 0:00:36]} 21. Rf1+ {[%clk 0:00:21]}  Rf7 {[%clk 0:00:24]} 22. Rxf7+ {[%clk 0:00:22]}  Qxf7 {[%clk 0:00:24]} 23. Qxe4 {[%clk 0:00:22]}  Qe8 {[%clk 0:00:14]} 24. Qb7 {[%clk 0:00:14]}  Kg8 {[%clk 0:00:06]} 25. Qxa6 {[%clk 0:00:14]}  Qg6 {[%clk 0:00:06]} 26. Rf3 {[%clk 0:00:06]}  Rf8 {[%clk 0:00:05]} 27. Rxf8+ {[%clk 0:00:05]}  Bxf8 {[%clk 0:00:06]} 28. Qxa7 {[%clk 0:00:06]}  Qb1+ {[%clk 0:00:06]} 29. Kf2 {[%clk 0:00:06]}  Qxb2+ {[%clk 0:00:07]} 30. Kf3 {[%clk 0:00:06]}  Qxc3 {[%clk 0:00:06]} 31. Qxb6 {[%clk 0:00:06]}  Qc4 {[%clk 0:00:06]} 32. dxc5 {[%clk 0:00:03]}  Qd5+ {[%clk 0:00:05]} 33. Kf4 {[%clk 0:00:02]}  Bxc5 {[%clk 0:00:05]} 34. Qb8+ {[%clk 0:00:01]}  Kg7 {[%clk 0:00:03]} 35. Qc7+ {[%clk 0:00:02]}  Kg6 {[%clk 0:00:04]} 36. Qc8 {[%clk 0:00:02]}  Qc4+ {[%clk 0:00:04]} 37. Kf3 {[%clk 0:00:02]}  Qf1+ {[%clk 0:00:04]} 38. Kg3 {[%clk 0:00:03]}  Qe1+ {[%clk 0:00:04]} 39. Kg4 {[%clk 0:00:03]}  Qe2+ {[%clk 0:00:04]} 40. Kh3 {[%clk 0:00:03]}  Qxe3+ {[%clk 0:00:04]} 41. g3 {[%clk 0:00:04]}  Qxe5 {[%clk 0:00:04]} 42. Qg8+ {[%clk 0:00:03]}  Kh6 {[%clk 0:00:04]} 43. Qf8+ {[%clk 0:00:03]}  Kh7 {[%clk 0:00:04]} 44. Qf7+ {[%clk 0:00:02]}  Kh6 {[%clk 0:00:04]} 45. Qf4+ {[%clk 0:00:03]}  Qxf4 {[%clk 0:00:04]} 46. gxf4 {[%clk 0:00:04]}  Kg6 {[%clk 0:00:04]} 47. Kg4 {[%clk 0:00:04]}  Ba3 {[%clk 0:00:03]} 48. h4 {[%clk 0:00:04]}  Bc1 {[%clk 0:00:03]} 49. a4 {[%clk 0:00:02]}  Bd2 {[%clk 0:00:04]} 50. Kf3 {[%clk 0:00:02]}  Kf5 {[%clk 0:00:04]} 51. h5 {[%clk 0:00:02]}  Bxf4 {[%clk 0:00:04]} 52. a5 {[%clk 0:00:02]}  Bb8 {[%clk 0:00:03]} 53. a6 {[%clk 0:00:02]}  Kg5 {[%clk 0:00:02]} 54. Ke4 {[%clk 0:00:03]}  Kxh5 {[%clk 0:00:02]} 55. a7 {[%clk 0:00:03]}  Bxa7 {[%clk 0:00:03]} 56. Ke5 {[%clk 0:00:04]}  Bb6 {[%clk 0:00:02]} 57. Kxe6 {[%clk 0:00:05]} 1/2-1/2

[Event "January 9 Early 2024"]
[Site "https://www.chess.com"]
[Date "2024.01.11"]
[Round "4"]
[White "Shuvalov, Evgenij"]
[Black "Kobalia, Mikhail"]
[Result "0-1"]
[Board "275"]
[TimeControl "180+1"]
[WhiteFideId "4187237"]
[BlackFideId "4119150"]
[WhiteElo "2515"]
[BlackElo "2749"]
[WhiteTeam "FID"]
[BlackTeam "FID"]
[WhiteClock "0:00:02"]
[BlackClock "0:00:02"]

1. d4 {[%clk 0:03:00]}  f5 {[%clk 0:02:59]} 2. Nf3 {[%clk 0:02:57]}  Nf6 {[%clk 0:02:59]} 3. g3 {[%clk 0:02:57]}  g6 {[%clk 0:02:59]} 4. Bg2 {[%clk 0:02:58]}  Bg7 {[%clk 0:03:00]} 5. O-O {[%clk 0:02:58]}  O-O {[%clk 0:03:00]} 6. c3 {[%clk 0:02:58]}  d6 {[%clk 0:02:57]} 7. Qb3+ {[%clk 0:02:58]}  Kh8 {[%clk 0:02:55]} 8. Ng5 {[%clk 0:02:57]}  d5 {[%clk 0:02:55]} 9. Nd2 {[%clk 0:02:57]}  c6 {[%clk 0:02:52]} 10. Ndf3 {[%clk 0:02:56]}  h6 {[%clk 0:02:47]} 11. Nh3 {[%clk 0:02:56]}  g5 {[%clk 0:02:46]} 12. Ne5 {[%clk 0:02:56]}  Qe8 {[%clk 0:02:45]} 13. f3 {[%clk 0:02:54]}  Nbd7 {[%clk 0:02:44]} 14. Nxd7 {[%clk 0:02:28]}  Qxd7 {[%clk 0:02:41]} 15. Nf2 {[%clk 0:02:27]}  b6 {[%clk 0:02:41]} 16. e4 {[%clk 0:02:25]}  Ba6 {[%clk 0:02:39]} 17. Re1 {[%clk 0:02:24]}  fxe4 {[%clk 0:02:37]} 18. fxe4 {[%clk 0:02:24]}  dxe4 {[%clk 0:02:34]} 19. Nxe4 {[%clk 0:02:22]}  Nd5 {[%clk 0:02:31]} 20. Bd2 {[%clk 0:02:11]}  Rf7 {[%clk 0:02:27]} 21. Qa4 {[%clk 0:02:03]}  Bb5 {[%clk 0:02:26]} 22. Qc2 {[%clk 0:01:58]}  Ba6 {[%clk 0:02:25]} 23. Qa4 {[%clk 0:01:58]}  Bd3 {[%clk 0:02:17]} 24. Nf2 {[%clk 0:01:53]}  Bb5 {[%clk 0:02:09]} 25. Qc2 {[%clk 0:01:49]}  Raf8 {[%clk 0:02:09]} 26. Ne4 {[%clk 0:01:34]}  Ba6 {[%clk 0:02:09]} 27. Bxg5 {[%clk 0:01:22]}  hxg5 {[%clk 0:01:47]} 28. Nxg5 {[%clk 0:01:23]}  Rf5 {[%clk 0:01:24]} 29. Bh3 {[%clk 0:01:20]}  e6 {[%clk 0:00:44]} 30. Nxe6 {[%clk 0:00:41]}  Rh5 {[%clk 0:00:43]} 31. Bg4 {[%clk 0:00:27]}  Rh6 {[%clk 0:00:42]} 32. Nxf8 {[%clk 0:00:13]}  Qxg4 {[%clk 0:00:41]} 33. Re8 {[%clk 0:00:13]}  Bxf8 {[%clk 0:00:21]} 34. Rxf8+ {[%clk 0:00:13]}  Kg7 {[%clk 0:00:22]} 35. Qf5 {[%clk 0:00:12]}  Qxf5 {[%clk 0:00:15]} 36. Rxf5 {[%clk 0:00:12]}  Re6 {[%clk 0:00:14]} 37. Rf2 {[%clk 0:00:11]}  Nf6 {[%clk 0:00:12]} 38. b3 {[%clk 0:00:10]}  Ng4 {[%clk 0:00:09]} 39. Rd2 {[%clk 0:00:10]}  Re3 {[%clk 0:00:09]} 40. c4 {[%clk 0:00:09]}  Bc8 {[%clk 0:00:09]} 41. Rf1 {[%clk 0:00:08]}  Nf6 {[%clk 0:00:06]} 42. d5 {[%clk 0:00:08]}  cxd5 {[%clk 0:00:06]} 43. cxd5 {[%clk 0:00:09]}  Bd7 {[%clk 0:00:06]} 44. d6 {[%clk 0:00:09]}  Ne4 {[%clk 0:00:06]} 45. Rd4 {[%clk 0:00:07]}  Re2 {[%clk 0:00:06]} 46. Rf4 {[%clk 0:00:07]}  Ng5 {[%clk 0:00:06]} 47. Rf2 {[%clk 0:00:05]}  Nh3+ {[%clk 0:00:05]} 48. Kf1 {[%clk 0:00:05]}  Rxf2+ {[%clk 0:00:06]} 49. Ke1 {[%clk 0:00:06]}  Rxa2 {[%clk 0:00:06]} 50. b4 {[%clk 0:00:05]}  Kf6 {[%clk 0:00:06]} 51. Re4 {[%clk 0:00:05]}  Kf5 {[%clk 0:00:04]} 52. Re7 {[%clk 0:00:05]}  Bb5 {[%clk 0:00:04]} 53. d7 {[%clk 0:00:05]}  Bxd7 {[%clk 0:00:03]} 54. Rxd7 {[%clk 0:00:06]}  Ke4 {[%clk 0:00:03]} 55. Rh7 {[%clk 0:00:05]}  Ng5 {[%clk 0:00:03]} 56. Re7+ {[%clk 0:00:04]}  Kd3 {[%clk 0:00:03]} 57. h4 {[%clk 0:00:03]}  Ne4 {[%clk 0:00:02]} 58. g4 {[%clk 0:00:02]}  Ra1# {[%clk 0:00:02]} 0-1

[Event "January 9 Early 2024"]
[Site "https://www.chess.com"]
[Date "2024.01.11"]
[Round "4"]
[White "Shubenkova, Veronika"]
[Black "Durarbayli, Vasif"]
[Result "0-1"]
[Board "276"]
[TimeControl "180+1"]
[WhiteFideId "44124040"]
[BlackFideId "13402935"]
[WhiteElo "2579"]
[BlackElo "2800"]
[WhiteTeam "RUS"]
[BlackTeam "AZE"]
[WhiteClock "0:00:02"]
[BlackClock "0:00:08"]

1. d4 {[%clk 0:03:00]}  Nf6 {[%clk 0:03:00]} 2. e3 {[%clk 0:03:01]}  d5 {[%clk 0:02:57]} 3. f4 {[%clk 0:03:01]}  c5 {[%clk 0:02:57]} 4. Nf3 {[%clk 0:03:02]}  cxd4 {[%clk 0:02:56]} 5. exd4 {[%clk 0:03:03]}  Nc6 {[%clk 0:02:53]} 6. c3 {[%clk 0:03:03]}  Bf5 {[%clk 0:02:50]} 7. Bd3 {[%clk 0:03:04]}  e6 {[%clk 0:02:50]} 8. O-O {[%clk 0:03:04]}  Bd6 {[%clk 0:02:49]} 9. Ne5 {[%clk 0:03:03]}  O-O {[%clk 0:02:49]} 10. Qe2 {[%clk 0:03:02]}  Qb6 {[%clk 0:02:38]} 11. Kh1 {[%clk 0:03:00]}  Rac8 {[%clk 0:02:34]} 12. Nd2 {[%clk 0:02:59]}  h6 {[%clk 0:02:27]} 13. Ndf3 {[%clk 0:02:55]}  Ne4 {[%clk 0:02:27]} 14. Nd7 {[%clk 0:02:54]}  Qc7 {[%clk 0:02:03]} 15. Nxf8 {[%clk 0:02:53]}  Rxf8 {[%clk 0:02:04]} 16. Ne5 {[%clk 0:02:53]}  Ne7 {[%clk 0:02:05]} 17. Be3 {[%clk 0:02:52]}  f6 {[%clk 0:02:03]} 18. Nf3 {[%clk 0:02:50]}  Bxf4 {[%clk 0:02:00]} 19. Bxf4 {[%clk 0:02:44]}  Qxf4 {[%clk 0:02:01]} 20. Bxe4 {[%clk 0:02:33]}  Bxe4 {[%clk 0:02:01]} 21. Nd2 {[%clk 0:02:33]}  Qh4 {[%clk 0:02:01]} 22. Nxe4 {[%clk 0:02:33]}  Qxe4 {[%clk 0:02:02]} 23. Qb5 {[%clk 0:02:26]}  Nf5 {[%clk 0:01:33]} 24. Rae1 {[%clk 0:02:23]}  Qh4 {[%clk 0:01:31]} 25. Kg1 {[%clk 0:02:15]}  Qg5 {[%clk 0:01:31]} 26. Rxe6 {[%clk 0:02:09]}  Ne3 {[%clk 0:01:31]} 27. Rf2 {[%clk 0:02:09]}  Ng4 {[%clk 0:01:29]} 28. Rfe2 {[%clk 0:02:07]}  Qc1+ {[%clk 0:01:22]} 29. Re1 {[%clk 0:02:06]}  Qf4 {[%clk 0:01:23]} 30. Qxd5 {[%clk 0:01:22]}  Qxh2+ {[%clk 0:01:23]} 31. Kf1 {[%clk 0:01:22]}  Kh8 {[%clk 0:01:24]} 32. Qf3 {[%clk 0:01:09]}  f5 {[%clk 0:01:23]} 33. Ke2 {[%clk 0:00:55]}  Qh5 {[%clk 0:00:54]} 34. Kd1 {[%clk 0:00:50]}  f4 {[%clk 0:00:54]} 35. Kc1 {[%clk 0:00:42]}  b5 {[%clk 0:00:53]} 36. R6e4 {[%clk 0:00:27]}  b4 {[%clk 0:00:24]} 37. Rxf4 {[%clk 0:00:26]}  Qg5 {[%clk 0:00:24]} 38. g3 {[%clk 0:00:24]}  bxc3 {[%clk 0:00:25]} 39. Kb1 {[%clk 0:00:20]}  c2+ {[%clk 0:00:18]} 40. Kxc2 {[%clk 0:00:20]}  Nf6 {[%clk 0:00:19]} 41. Kb1 {[%clk 0:00:19]}  Qg6+ {[%clk 0:00:17]} 42. Ka1 {[%clk 0:00:19]}  Qc2 {[%clk 0:00:18]} 43. Rb1 {[%clk 0:00:16]}  a5 {[%clk 0:00:17]} 44. d5 {[%clk 0:00:16]}  a4 {[%clk 0:00:17]} 45. d6 {[%clk 0:00:17]}  Qd2 {[%clk 0:00:14]} 46. Rd1 {[%clk 0:00:14]}  Qc2 {[%clk 0:00:14]} 47. d7 {[%clk 0:00:14]}  Rd8 {[%clk 0:00:12]} 48. Rxf6 {[%clk 0:00:10]}  gxf6 {[%clk 0:00:12]} 49. Qxf6+ {[%clk 0:00:10]}  Kh7 {[%clk 0:00:13]} 50. Qe7+ {[%clk 0:00:10]}  Kg6 {[%clk 0:00:12]} 51. Rd6+ {[%clk 0:00:07]}  Kf5 {[%clk 0:00:09]} 52. Rf6+ {[%clk 0:00:06]}  Kg4 {[%clk 0:00:09]} 53. Rf4+ {[%clk 0:00:06]}  Kh3 {[%clk 0:00:08]} 54. Qh4+ {[%clk 0:00:03]}  Kg2 {[%clk 0:00:08]} 55. Rf1 {[%clk 0:00:03]}  Kxf1 {[%clk 0:00:08]} 56. Qf6+ {[%clk 0:00:02]}  Kg1 {[%clk 0:00:08]} 57. Qb6+ {[%clk 0:00:02]}  Qf2 {[%clk 0:00:08]} 0-1

[Event "January 9 Early 2024"]
[Site "https://www.chess.com"]
[Date "2024.01.11"]
[Round "4"]
[White "Vachier-Lagrave, Maxime"]
[Black "Murzin, Volodar"]
[Result "0-1"]
[Board "277"]
[TimeControl "180+1"]
[WhiteFideId "623539"]
[BlackFideId "44155573"]
[WhiteElo "3166"]
[BlackElo "2952"]
[WhiteTeam "FRA"]
[BlackTeam "FID"]
[WhiteClock "0:00:02"]
[BlackClock "0:00:05"]

1. e4 {[%clk 0:03:00]}  e5 {[%clk 0:02:59]} 2. Nf3 {[%clk 0:03:01]}  Nc6 {[%clk 0:03:00]} 3. Bc4 {[%clk 0:03:00]}  Nf6 {[%clk 0:03:00]} 4. d3 {[%clk 0:03:00]}  Be7 {[%clk 0:02:59]} 5. O-O {[%clk 0:02:59]}  O-O {[%clk 0:03:00]} 6. a4 {[%clk 0:02:55]}  d6 {[%clk 0:02:59]} 7. a5 {[%clk 0:02:52]}  Be6 {[%clk 0:02:54]} 8. Bxe6 {[%clk 0:02:46]}  fxe6 {[%clk 0:02:55]} 9. c3 {[%clk 0:02:41]}  Qd7 {[%clk 0:02:44]} 10. Re1 {[%clk 0:02:40]}  h6 {[%clk 0:02:43]} 11. Nbd2 {[%clk 0:02:40]}  Rf7 {[%clk 0:02:37]} 12. Nf1 {[%clk 0:02:35]}  Raf8 {[%clk 0:02:37]} 13. Be3 {[%clk 0:02:32]}  Ng4 {[%clk 0:02:33]} 14. h3 {[%clk 0:02:32]}  Nxe3 {[%clk 0:02:25]} 15. Nxe3 {[%clk 0:02:11]}  a6 {[%clk 0:02:12]} 16. b4 {[%clk 0:02:06]}  Na7 {[%clk 0:02:06]} 17. Ra2 {[%clk 0:01:48]}  Nb5 {[%clk 0:02:02]} 18. Rc2 {[%clk 0:01:48]}  Qd8 {[%clk 0:01:52]} 19. Ng4 {[%clk 0:01:35]}  Bg5 {[%clk 0:01:28]} 20. c4 {[%clk 0:01:27]}  Na7 {[%clk 0:01:02]} 21. d4 {[%clk 0:01:11]}  Rxf3 {[%clk 0:00:49]} 22. gxf3 {[%clk 0:01:12]}  h5 {[%clk 0:00:50]} 23. Nh2 {[%clk 0:01:07]}  exd4 {[%clk 0:00:39]} 24. Qxd4 {[%clk 0:01:00]}  Nc6 {[%clk 0:00:39]} 25. Qd1 {[%clk 0:01:01]}  Bf4 {[%clk 0:00:31]} 26. b5 {[%clk 0:00:36]}  Ne5 {[%clk 0:00:25]} 27. Rc3 {[%clk 0:00:36]}  Qh4 {[%clk 0:00:20]} 28. Ng4 {[%clk 0:00:09]}  hxg4 {[%clk 0:00:18]} 29. fxg4 {[%clk 0:00:10]}  Qf6 {[%clk 0:00:14]} 30. Qc2 {[%clk 0:00:08]}  Bg5 {[%clk 0:00:12]} 31. Rb1 {[%clk 0:00:07]}  Nf3+ {[%clk 0:00:12]} 32. Kh1 {[%clk 0:00:05]}  Nd2 {[%clk 0:00:12]} 33. Rg1 {[%clk 0:00:05]}  Nxe4 {[%clk 0:00:10]} 34. Qxe4 {[%clk 0:00:03]}  Qxc3 {[%clk 0:00:11]} 35. Qxe6+ {[%clk 0:00:04]}  Kh8 {[%clk 0:00:11]} 36. Rg3 {[%clk 0:00:03]}  Qe5 {[%clk 0:00:10]} 37. Qxe5 {[%clk 0:00:03]}  dxe5 {[%clk 0:00:11]} 38. Kg2 {[%clk 0:00:04]}  Bd2 {[%clk 0:00:09]} 39. Ra3 {[%clk 0:00:04]}  Bb4 {[%clk 0:00:09]} 40. Ra2 {[%clk 0:00:03]}  Bc5 {[%clk 0:00:07]} 41. f3 {[%clk 0:00:04]}  Rf4 {[%clk 0:00:07]} 42. Re2 {[%clk 0:00:04]}  Rxc4 {[%clk 0:00:07]} 43. bxa6 {[%clk 0:00:04]}  bxa6 {[%clk 0:00:07]} 44. Rxe5 {[%clk 0:00:04]}  Bb4 {[%clk 0:00:07]} 45. Re6 {[%clk 0:00:02]}  Rc2+ {[%clk 0:00:06]} 46. Kg3 {[%clk 0:00:02]}  Bd6+ {[%clk 0:00:06]} 47. Kh4 {[%clk 0:00:02]}  Rc5 {[%clk 0:00:07]} 48. g5 {[%clk 0:00:02]}  Rxa5 {[%clk 0:00:07]} 49. Kh5 {[%clk 0:00:02]}  Kg8 {[%clk 0:00:07]} 50. Kg6 {[%clk 0:00:02]}  Bf8 {[%clk 0:00:06]} 51. h4 {[%clk 0:00:02]}  c5 {[%clk 0:00:06]} 52. h5 {[%clk 0:00:02]}  c4 {[%clk 0:00:07]} 53. h6 {[%clk 0:00:02]}  gxh6 {[%clk 0:00:08]} 54. gxh6 {[%clk 0:00:03]}  Rc5 {[%clk 0:00:05]} 55. Rxa6 {[%clk 0:00:01]}  c3 {[%clk 0:00:04]} 56. h7+ {[%clk 0:00:02]}  Kh8 {[%clk 0:00:05]} 57. Ra8 {[%clk 0:00:02]}  Rc6+ {[%clk 0:00:05]} 58. Kf7 {[%clk 0:00:02]}  c2 {[%clk 0:00:05]} 0-1

[Event "January 9 Early 2024"]
[Site "https://www.chess.com"]
[Date "2024.01.11"]
[Round "4"]
[White "Mirza, Diana"]
[Black "Coelho, Ramyres Santana"]
[Result "0-1"]
[Board "282"]
[TimeControl "180+1"]
[WhiteFideId "2503999"]
[BlackFideId "2120690"]
[WhiteElo "2004"]
[BlackElo "2292"]
[WhiteTeam "IRL"]
[BlackTeam "BRA"]
[WhiteClock "0:00:01"]
[BlackClock "0:00:06"]

1. e4 {[%clk 0:03:00]}  c5 {[%clk 0:01:56]} 2. Nf3 {[%clk 0:02:59]}  d6 {[%clk 0:01:56]} 3. d4 {[%clk 0:02:59]}  cxd4 {[%clk 0:01:57]} 4. Nxd4 {[%clk 0:03:00]}  Nf6 {[%clk 0:01:57]} 5. Nc3 {[%clk 0:03:01]}  a6 {[%clk 0:01:57]} 6. f3 {[%clk 0:03:00]}  e6 {[%clk 0:01:58]} 7. Be3 {[%clk 0:03:00]}  b5 {[%clk 0:01:58]} 8. a4 {[%clk 0:02:55]}  Bb7 {[%clk 0:01:59]} 9. axb5 {[%clk 0:02:55]}  axb5 {[%clk 0:01:58]} 10. Rxa8 {[%clk 0:02:55]}  Bxa8 {[%clk 0:01:59]} 11. Bxb5+ {[%clk 0:02:55]}  Nbd7 {[%clk 0:01:58]} 12. O-O {[%clk 0:02:49]}  Be7 {[%clk 0:01:58]} 13. Nc6 {[%clk 0:02:48]}  Bxc6 {[%clk 0:01:56]} 14. Bxc6 {[%clk 0:02:49]}  O-O {[%clk 0:01:56]} 15. Qd2 {[%clk 0:02:42]}  Ne5 {[%clk 0:01:55]} 16. Bb5 {[%clk 0:02:40]}  Qc7 {[%clk 0:01:55]} 17. Qd4 {[%clk 0:02:20]}  Rc8 {[%clk 0:01:50]} 18. Qb6 {[%clk 0:02:12]}  Qxb6 {[%clk 0:01:46]} 19. Bxb6 {[%clk 0:02:13]}  d5 {[%clk 0:01:43]} 20. exd5 {[%clk 0:02:10]}  Nxd5 {[%clk 0:01:44]} 21. Nxd5 {[%clk 0:02:01]}  exd5 {[%clk 0:01:44]} 22. Bd4 {[%clk 0:01:57]}  Bc5 {[%clk 0:01:24]} 23. c3 {[%clk 0:01:50]}  Bxd4+ {[%clk 0:01:24]} 24. cxd4 {[%clk 0:01:51]}  Nc4 {[%clk 0:01:18]} 25. Rc1 {[%clk 0:01:49]}  Kf8 {[%clk 0:01:01]} 26. b3 {[%clk 0:01:31]}  Nd6 {[%clk 0:01:00]} 27. Rxc8+ {[%clk 0:01:31]}  Nxc8 {[%clk 0:01:01]} 28. Kf2 {[%clk 0:01:21]}  Ke7 {[%clk 0:01:00]} 29. Ke3 {[%clk 0:01:21]}  Nd6 {[%clk 0:00:59]} 30. Bc6 {[%clk 0:01:21]}  Ke6 {[%clk 0:00:59]} 31. b4 {[%clk 0:01:19]}  Nf5+ {[%clk 0:00:55]} 32. Kd3 {[%clk 0:01:10]}  Nh4 {[%clk 0:00:54]} 33. b5 {[%clk 0:01:02]}  Nxg2 {[%clk 0:00:53]} 34. b6 {[%clk 0:01:01]}  Nf4+ {[%clk 0:00:53]} 35. Kc3 {[%clk 0:01:00]}  Kd6 {[%clk 0:00:53]} 36. Be8 {[%clk 0:00:51]}  f6 {[%clk 0:00:44]} 37. Kb4 {[%clk 0:00:42]}  Ne2 {[%clk 0:00:33]} 38. Ka5 {[%clk 0:00:41]}  Nxd4 {[%clk 0:00:31]} 39. Ka6 {[%clk 0:00:41]}  Ne6 {[%clk 0:00:17]} 40. Ka7 {[%clk 0:00:23]}  Nc5 {[%clk 0:00:10]} 41. b7 {[%clk 0:00:17]}  Nxb7 {[%clk 0:00:10]} 42. Kxb7 {[%clk 0:00:18]}  d4 {[%clk 0:00:10]} 43. Kb6 {[%clk 0:00:15]}  d3 {[%clk 0:00:10]} 44. Ba4 {[%clk 0:00:16]}  Ke5 {[%clk 0:00:09]} 45. Kc5 {[%clk 0:00:15]}  Kf4 {[%clk 0:00:09]} 46. Bd1 {[%clk 0:00:15]}  Ke3 {[%clk 0:00:09]} 47. Kc4 {[%clk 0:00:14]}  g5 {[%clk 0:00:08]} 48. Kc3 {[%clk 0:00:13]}  f5 {[%clk 0:00:07]} 49. h3 {[%clk 0:00:12]}  h5 {[%clk 0:00:07]} 50. Kb2 {[%clk 0:00:10]}  Kd2 {[%clk 0:00:06]} 51. Ba4 {[%clk 0:00:06]}  Ke2 {[%clk 0:00:05]} 52. Kc3 {[%clk 0:00:04]}  Kxf3 {[%clk 0:00:05]} 53. Kxd3 {[%clk 0:00:03]}  Kg3 {[%clk 0:00:06]} 54. Bd7 {[%clk 0:00:03]}  g4 {[%clk 0:00:05]} 55. hxg4 {[%clk 0:00:03]}  fxg4 {[%clk 0:00:06]} 56. Ke2 {[%clk 0:00:03]}  Kg2 {[%clk 0:00:05]} 57. Ke1 {[%clk 0:00:02]}  g3 {[%clk 0:00:05]} 58. Ke2 {[%clk 0:00:01]}  h4 {[%clk 0:00:05]} 59. Ke3 {[%clk 0:00:01]}  h3 {[%clk 0:00:06]} 0-1